[Event "Titled Tuesday Blitz July 11 Early 2023"]
[White "Ergazakis, Ioannis"]
[Black "Arabidze, Meri"]
[WhiteFideId "4290976"]
[BlackFideId "13604040"]
[WhiteElo "2466"]
[BlackElo "2641"]
[Result "0-1"]
[Round "4"]
[TimeControl "180+2"]
[Date "2023.07.11"]
[WhiteClock "0:00:01"]
[BlackClock "0:00:06"]
[Board "79"]

1. e4 {[%clk 0:03:00]}  c5 {[%clk 0:02:56]} 2. Nf3 {[%clk 0:03:01]}  e6 {[%clk 0:02:56]} 3. d4 {[%clk 0:03:00]}  cxd4 {[%clk 0:02:57]} 4. Nxd4 {[%clk 0:03:01]}  Nc6 {[%clk 0:02:58]} 5. Nb5 {[%clk 0:03:00]}  d6 {[%clk 0:02:58]} 6. c4 {[%clk 0:02:57]}  Nf6 {[%clk 0:02:58]} 7. N1c3 {[%clk 0:02:58]}  a6 {[%clk 0:02:58]} 8. Na3 {[%clk 0:02:58]}  b6 {[%clk 0:02:59]} 9. Be2 {[%clk 0:02:57]}  Bb7 {[%clk 0:02:59]} 10. Be3 {[%clk 0:02:58]}  Be7 {[%clk 0:02:59]} 11. O-O {[%clk 0:02:58]}  O-O {[%clk 0:02:59]} 12. Qb3 {[%clk 0:02:57]}  Nd7 {[%clk 0:02:59]} 13. Rfd1 {[%clk 0:02:56]}  Nc5 {[%clk 0:02:52]} 14. Qc2 {[%clk 0:02:56]}  Qc7 {[%clk 0:02:46]} 15. Rac1 {[%clk 0:02:52]}  Bf6 {[%clk 0:02:46]} 16. f3 {[%clk 0:02:48]}  Be5 {[%clk 0:02:46]} 17. Kh1 {[%clk 0:02:44]}  Rac8 {[%clk 0:02:38]} 18. Nab1 {[%clk 0:02:34]}  Qb8 {[%clk 0:02:30]} 19. Qd2 {[%clk 0:02:29]}  Rfd8 {[%clk 0:02:23]} 20. Bg5 {[%clk 0:02:24]}  Rd7 {[%clk 0:02:18]} 21. f4 {[%clk 0:02:22]}  Bxc3 {[%clk 0:02:17]} 22. Nxc3 {[%clk 0:02:23]}  Nb4 {[%clk 0:02:00]} 23. Qe3 {[%clk 0:02:17]}  h6 {[%clk 0:01:55]} 24. Bh4 {[%clk 0:02:15]}  Qa8 {[%clk 0:01:43]} 25. Bf3 {[%clk 0:02:10]}  f5 {[%clk 0:01:22]} 26. a3 {[%clk 0:01:52]}  fxe4 {[%clk 0:01:21]} 27. axb4 {[%clk 0:01:51]}  exf3 {[%clk 0:01:21]} 28. bxc5 {[%clk 0:01:52]}  fxg2+ {[%clk 0:01:21]} 29. Kg1 {[%clk 0:01:52]}  bxc5 {[%clk 0:00:46]} 30. Qxe6+ {[%clk 0:01:51]}  Rf7 {[%clk 0:00:47]} 31. Rxd6 {[%clk 0:01:50]}  Rf8 {[%clk 0:00:46]} 32. Nd5 {[%clk 0:01:41]}  Kh8 {[%clk 0:00:42]} 33. Ne7 {[%clk 0:01:28]}  Be4 {[%clk 0:00:25]} 34. Rd5 {[%clk 0:00:57]}  Rxf4 {[%clk 0:00:19]} 35. Bf2 {[%clk 0:00:26]}  Rxf2 {[%clk 0:00:13]} 36. Qxe4 {[%clk 0:00:26]}  Rf1+ {[%clk 0:00:12]} 37. Kxg2 {[%clk 0:00:26]}  Rxc1 {[%clk 0:00:11]} 38. Ng6+ {[%clk 0:00:27]}  Kg8 {[%clk 0:00:11]} 39. Qe6+ {[%clk 0:00:18]}  Kh7 {[%clk 0:00:10]} 40. Nxf8+ {[%clk 0:00:18]}  Qxf8 {[%clk 0:00:11]} 41. Rf5 {[%clk 0:00:13]}  Qa8+ {[%clk 0:00:09]} 42. Qd5 {[%clk 0:00:07]}  Qxd5+ {[%clk 0:00:09]} 43. cxd5 {[%clk 0:00:08]}  Rc2+ {[%clk 0:00:05]} 44. Kg3 {[%clk 0:00:09]}  Rxb2 {[%clk 0:00:05]} 45. d6 {[%clk 0:00:09]}  Rd2 {[%clk 0:00:05]} 46. Rxc5 {[%clk 0:00:09]}  Rxd6 {[%clk 0:00:05]} 47. Rc7 {[%clk 0:00:10]}  Rb6 {[%clk 0:00:05]} 48. Ra7 {[%clk 0:00:10]}  h5 {[%clk 0:00:05]} 49. h4 {[%clk 0:00:10]}  Kh6 {[%clk 0:00:05]} 50. Kh3 {[%clk 0:00:11]}  g6 {[%clk 0:00:05]} 51. Kg3 {[%clk 0:00:11]}  Rb3+ {[%clk 0:00:05]} 52. Kg2 {[%clk 0:00:11]}  Ra3 {[%clk 0:00:05]} 53. Kh2 {[%clk 0:00:11]}  g5 {[%clk 0:00:04]} 54. hxg5+ {[%clk 0:00:12]}  Kxg5 {[%clk 0:00:05]} 55. Rg7+ {[%clk 0:00:12]}  Kh6 {[%clk 0:00:06]} 56. Ra7 {[%clk 0:00:12]}  a5 {[%clk 0:00:06]} 57. Ra6+ {[%clk 0:00:11]}  Kg5 {[%clk 0:00:07]} 58. Ra8 {[%clk 0:00:12]}  Kh4 {[%clk 0:00:07]} 59. Ra6 {[%clk 0:00:07]}  Ra2+ {[%clk 0:00:07]} 60. Kg1 {[%clk 0:00:07]}  a4 {[%clk 0:00:08]} 61. Ra7 {[%clk 0:00:06]}  Kh3 {[%clk 0:00:07]} 62. Ra5 {[%clk 0:00:03]}  h4 {[%clk 0:00:08]} 63. Ra7 {[%clk 0:00:03]}  Ra1+ {[%clk 0:00:08]} 64. Kf2 {[%clk 0:00:03]}  a3 {[%clk 0:00:08]} 65. Ra4 {[%clk 0:00:02]}  Ra2+ {[%clk 0:00:08]} 66. Kf3 {[%clk 0:00:01]}  Rg2 {[%clk 0:00:05]} 67. Ke3 {[%clk 0:00:01]}  Rg3+ {[%clk 0:00:05]} 68. Kf2 {[%clk 0:00:02]}  Rg2+ {[%clk 0:00:03]} 69. Kf1 {[%clk 0:00:03]}  Ra2 {[%clk 0:00:03]} 70. Ra5 {[%clk 0:00:03]}  Kg3 {[%clk 0:00:02]} 71. Rg5+ {[%clk 0:00:03]}  Kf4 {[%clk 0:00:03]} 72. Ra5 {[%clk 0:00:03]}  h3 {[%clk 0:00:03]} 73. Kg1 {[%clk 0:00:03]}  Kg4 {[%clk 0:00:02]} 74. Ra8 {[%clk 0:00:02]}  Ra1+ {[%clk 0:00:01]} 75. Kh2 {[%clk 0:00:02]}  Ra2+ {[%clk 0:00:02]} 76. Kh1 {[%clk 0:00:03]}  Kg3 {[%clk 0:00:02]} 77. Rg8+ {[%clk 0:00:03]}  Kf3 {[%clk 0:00:03]} 78. Ra8 {[%clk 0:00:04]}  Kg4 {[%clk 0:00:02]} 79. Ra6 {[%clk 0:00:03]}  Ra1+ {[%clk 0:00:01]} 80. Kh2 {[%clk 0:00:03]}  Ra2+ {[%clk 0:00:02]} 81. Kh1 {[%clk 0:00:03]}  Kf4 {[%clk 0:00:02]} 82. Ra8 {[%clk 0:00:03]}  Ke4 {[%clk 0:00:02]} 83. Ra7 {[%clk 0:00:03]}  Kd4 {[%clk 0:00:02]} 84. Ra8 {[%clk 0:00:04]}  Kc3 {[%clk 0:00:03]} 85. Ra7 {[%clk 0:00:02]}  Ra1+ {[%clk 0:00:03]} 86. Kh2 {[%clk 0:00:02]}  Kb2 {[%clk 0:00:04]} 87. Re7 {[%clk 0:00:02]}  Rc1 {[%clk 0:00:03]} 88. Rb7+ {[%clk 0:00:01]}  Ka1 {[%clk 0:00:04]} 89. Kxh3 {[%clk 0:00:02]}  a2 {[%clk 0:00:04]} 90. Kg3 {[%clk 0:00:02]}  Rb1 {[%clk 0:00:05]} 91. Ra7 {[%clk 0:00:02]}  Kb2 {[%clk 0:00:05]} 92. Rb7+ {[%clk 0:00:03]}  Kc3 {[%clk 0:00:05]} 93. Rc7+ {[%clk 0:00:03]}  Kd4 {[%clk 0:00:05]} 94. Rd7+ {[%clk 0:00:04]}  Kc5 {[%clk 0:00:06]} 95. Rc7+ {[%clk 0:00:04]}  Kd6 {[%clk 0:00:06]} 96. Rc2 {[%clk 0:00:02]}  a1=Q {[%clk 0:00:06]} 97. Rd2+ {[%clk 0:00:03]}  Kc5 {[%clk 0:00:06]} 98. Re2 {[%clk 0:00:01]}  Rb3+ {[%clk 0:00:06]} 0-1


[Site "https://www.chess.com"]

[Event "Titled Tuesday Blitz July 11 Early 2023"]
[White "Sztokbant, Bernardo Vainzoff"]
[Black "Koshulyan, Egor A."]
[WhiteFideId "2115956"]
[BlackFideId "24237000"]
[WhiteElo "2446"]
[BlackElo "2638"]
[Result "0-1"]
[Round "4"]
[TimeControl "180+2"]
[Date "2023.07.11"]
[WhiteClock "0:01:13"]
[BlackClock "0:02:01"]
[Board "80"]

1. e4 {[%clk 0:03:00]}  c5 {[%clk 0:03:00]} 2. Nf3 {[%clk 0:02:59]}  Nc6 {[%clk 0:03:00]} 3. Bb5 {[%clk 0:02:57]}  g5 {[%clk 0:03:00]} 4. Nxg5 {[%clk 0:02:45]}  Nf6 {[%clk 0:03:00]} 5. Nc3 {[%clk 0:02:41]}  Rg8 {[%clk 0:03:00]} 6. d3 {[%clk 0:02:39]}  h6 {[%clk 0:03:00]} 7. Nh3 {[%clk 0:02:31]}  Rxg2 {[%clk 0:02:58]} 8. Nf4 {[%clk 0:02:31]}  Rg8 {[%clk 0:02:59]} 9. Be3 {[%clk 0:02:23]}  Nd4 {[%clk 0:02:59]} 10. Bc4 {[%clk 0:02:16]}  d6 {[%clk 0:02:27]} 11. Bxd4 {[%clk 0:02:12]}  cxd4 {[%clk 0:02:27]} 12. Nce2 {[%clk 0:02:12]}  e5 {[%clk 0:02:25]} 13. Nd5 {[%clk 0:02:09]}  Nxd5 {[%clk 0:02:25]} 14. Bxd5 {[%clk 0:02:10]}  Be7 {[%clk 0:02:24]} 15. Ng3 {[%clk 0:02:08]}  Qb6 {[%clk 0:02:13]} 16. Qh5 {[%clk 0:01:52]}  Rg6 {[%clk 0:02:04]} 17. O-O-O {[%clk 0:01:13]}  Bg4 {[%clk 0:02:01]} 0-1


[Site "https://www.chess.com"]

[Event "Titled Tuesday Blitz July 11 Early 2023"]
[White "Djokic, Mihailo"]
[Black "arenal72"]
[WhiteFideId "976440"]
[WhiteElo "2630"]
[BlackElo "2432"]
[Result "1-0"]
[Round "4"]
[TimeControl "180+2"]
[Date "2023.07.11"]
[WhiteClock "0:00:04"]
[BlackClock "0:00:00"]
[Board "82"]

1. e4 {[%clk 0:03:00]}  Nc6 {[%clk 0:02:59]} 2. Nc3 {[%clk 0:03:01]}  e5 {[%clk 0:02:57]} 3. Nf3 {[%clk 0:03:00]}  d6 {[%clk 0:02:55]} 4. d4 {[%clk 0:03:00]}  exd4 {[%clk 0:02:55]} 5. Nxd4 {[%clk 0:03:00]}  Nf6 {[%clk 0:02:55]} 6. Bb5 {[%clk 0:02:59]}  Bd7 {[%clk 0:02:55]} 7. Bxc6 {[%clk 0:02:59]}  bxc6 {[%clk 0:02:55]} 8. Qf3 {[%clk 0:03:00]}  Be7 {[%clk 0:02:53]} 9. e5 {[%clk 0:03:00]}  dxe5 {[%clk 0:02:53]} 10. Nxc6 {[%clk 0:03:00]}  Bxc6 {[%clk 0:02:53]} 11. Qxc6+ {[%clk 0:03:01]}  Nd7 {[%clk 0:02:50]} 12. Be3 {[%clk 0:03:01]}  O-O {[%clk 0:02:45]} 13. O-O-O {[%clk 0:03:00]}  Bd6 {[%clk 0:02:44]} 14. Ne4 {[%clk 0:03:00]}  Nf6 {[%clk 0:02:34]} 15. Bg5 {[%clk 0:02:20]}  Rb8 {[%clk 0:02:26]} 16. Nxd6 {[%clk 0:02:05]}  cxd6 {[%clk 0:02:26]} 17. Rxd6 {[%clk 0:02:05]}  Qa5 {[%clk 0:02:25]} 18. Bxf6 {[%clk 0:01:59]}  Qxa2 {[%clk 0:02:20]} 19. Bxe5 {[%clk 0:01:41]}  Qa1+ {[%clk 0:02:14]} 20. Kd2 {[%clk 0:01:42]}  Qxh1 {[%clk 0:02:14]} 21. Rd3 {[%clk 0:01:25]}  Rbe8 {[%clk 0:02:07]} 22. Qd5 {[%clk 0:00:58]}  Qf1 {[%clk 0:01:53]} 23. f4 {[%clk 0:00:38]}  Qf2+ {[%clk 0:01:30]} 24. Kc1 {[%clk 0:00:28]}  Rc8 {[%clk 0:01:22]} 25. Rd2 {[%clk 0:00:18]}  Qe1+ {[%clk 0:01:14]} 26. Rd1 {[%clk 0:00:18]}  Qe3+ {[%clk 0:01:15]} 27. Kb1 {[%clk 0:00:19]}  h6 {[%clk 0:01:08]} 28. g3 {[%clk 0:00:14]}  Kh7 {[%clk 0:00:56]} 29. Qa5 {[%clk 0:00:06]}  Qe2 {[%clk 0:00:46]} 30. Qd2 {[%clk 0:00:06]}  Qxd2 {[%clk 0:00:44]} 31. Rxd2 {[%clk 0:00:06]}  f6 {[%clk 0:00:45]} 32. Bd4 {[%clk 0:00:06]}  Rcd8 {[%clk 0:00:41]} 33. c3 {[%clk 0:00:05]}  Rfe8 {[%clk 0:00:40]} 34. Kc2 {[%clk 0:00:05]}  a6 {[%clk 0:00:40]} 35. b4 {[%clk 0:00:05]}  Re1 {[%clk 0:00:37]} 36. Kd3 {[%clk 0:00:05]}  Kg6 {[%clk 0:00:35]} 37. Ra2 {[%clk 0:00:05]}  Re6 {[%clk 0:00:29]} 38. g4 {[%clk 0:00:03]}  f5 {[%clk 0:00:28]} 39. Rg2 {[%clk 0:00:02]}  Re7 {[%clk 0:00:19]} 40. gxf5+ {[%clk 0:00:01]}  Kxf5 {[%clk 0:00:19]} 41. Kc4 {[%clk 0:00:01]}  g6 {[%clk 0:00:18]} 42. Bc5 {[%clk 0:00:01]}  Re4+ {[%clk 0:00:18]} 43. Kb3 {[%clk 0:00:01]}  Rxf4 {[%clk 0:00:18]} 44. Ra2 {[%clk 0:00:02]}  Rd3 {[%clk 0:00:14]} 45. Rxa6 {[%clk 0:00:02]}  Rff3 {[%clk 0:00:15]} 46. Kc4 {[%clk 0:00:02]}  Rxc3+ {[%clk 0:00:15]} 47. Kd5 {[%clk 0:00:03]}  Rfd3+ {[%clk 0:00:14]} 48. Kc6 {[%clk 0:00:03]}  g5 {[%clk 0:00:13]} 49. Ra2 {[%clk 0:00:02]}  h5 {[%clk 0:00:13]} 50. b5 {[%clk 0:00:01]}  g4 {[%clk 0:00:13]} 51. b6 {[%clk 0:00:02]}  Rd1 {[%clk 0:00:12]} 52. Rb2 {[%clk 0:00:01]}  Rdc1 {[%clk 0:00:12]} 53. Rb5 {[%clk 0:00:01]}  h4 {[%clk 0:00:07]} 54. b7 {[%clk 0:00:02]}  g3 {[%clk 0:00:02]} 55. b8=Q {[%clk 0:00:02]}  g2 {[%clk 0:00:02]} 56. Qf8+ {[%clk 0:00:03]}  Kg4 {[%clk 0:00:02]} 57. Qg7+ {[%clk 0:00:04]}  Kh3 {[%clk 0:00:03]} 58. Qd7+ {[%clk 0:00:04]}  Kxh2 {[%clk 0:00:02]} 59. Rb2 {[%clk 0:00:03]}  Rxc5+ {[%clk 0:00:01]} 60. Kb6 {[%clk 0:00:04]}  Rd1 {[%clk 0:00:02]} 61. Qf7 {[%clk 0:00:03]}  Rcd5 {[%clk 0:00:01]} 62. Qf4+ {[%clk 0:00:03]}  Kh1 {[%clk 0:00:00]} 63. Qxh4+ {[%clk 0:00:04]} 1-0


[Site "https://www.chess.com"]

[Event "Titled Tuesday Blitz July 11 Early 2023"]
[White "Yurasova, Daria"]
[Black "Stepanencu, Nicodim-Cosmin"]
[WhiteFideId "34146919"]
[BlackFideId "1256220"]
[WhiteElo "2430"]
[BlackElo "2630"]
[Result "0-1"]
[Round "4"]
[TimeControl "180+2"]
[Date "2023.07.11"]
[WhiteClock "0:00:06"]
[BlackClock "0:00:57"]
[Board "83"]

1. d4 {[%clk 0:03:00]}  b5 {[%clk 0:02:55]} 2. Nf3 {[%clk 0:02:49]}  Bb7 {[%clk 0:02:55]} 3. e3 {[%clk 0:02:48]}  a6 {[%clk 0:02:55]} 4. Be2 {[%clk 0:02:48]}  Nf6 {[%clk 0:02:55]} 5. O-O {[%clk 0:02:49]}  e6 {[%clk 0:02:55]} 6. Nbd2 {[%clk 0:02:49]}  Be7 {[%clk 0:02:52]} 7. c4 {[%clk 0:02:48]}  bxc4 {[%clk 0:02:52]} 8. Nxc4 {[%clk 0:02:43]}  O-O {[%clk 0:02:53]} 9. b3 {[%clk 0:02:42]}  a5 {[%clk 0:02:51]} 10. Bb2 {[%clk 0:02:39]}  c5 {[%clk 0:02:46]} 11. Rc1 {[%clk 0:02:16]}  d5 {[%clk 0:02:43]} 12. Nce5 {[%clk 0:02:16]}  Nbd7 {[%clk 0:02:43]} 13. Bb5 {[%clk 0:02:11]}  Rc8 {[%clk 0:02:33]} 14. Nxd7 {[%clk 0:02:06]}  Nxd7 {[%clk 0:02:33]} 15. Bxd7 {[%clk 0:02:06]}  Qxd7 {[%clk 0:02:32]} 16. Ne5 {[%clk 0:02:07]}  Qb5 {[%clk 0:02:25]} 17. Qg4 {[%clk 0:02:04]}  c4 {[%clk 0:01:59]} 18. Qe2 {[%clk 0:01:28]}  Ba6 {[%clk 0:01:55]} 19. bxc4 {[%clk 0:01:27]}  dxc4 {[%clk 0:01:56]} 20. Bc3 {[%clk 0:01:26]}  Bb4 {[%clk 0:01:41]} 21. Qg4 {[%clk 0:01:22]}  Qa4 {[%clk 0:01:29]} 22. Ba1 {[%clk 0:01:08]}  c3 {[%clk 0:01:22]} 23. Rfe1 {[%clk 0:00:55]}  Qxa2 {[%clk 0:01:21]} 24. Nd7 {[%clk 0:00:49]}  Rfd8 {[%clk 0:01:15]} 25. Nf6+ {[%clk 0:00:49]}  Kh8 {[%clk 0:01:15]} 26. Nh5 {[%clk 0:00:34]}  Rg8 {[%clk 0:01:13]} 27. Qg3 {[%clk 0:00:20]}  Qd5 {[%clk 0:01:04]} 28. Nf4 {[%clk 0:00:10]}  Qe4 {[%clk 0:01:04]} 29. f3 {[%clk 0:00:10]}  Qb7 {[%clk 0:00:59]} 30. e4 {[%clk 0:00:08]}  Qb6 {[%clk 0:00:59]} 31. Qf2 {[%clk 0:00:07]}  e5 {[%clk 0:00:58]} 32. Nd5 {[%clk 0:00:07]}  Qxd4 {[%clk 0:00:57]} 33. Qxd4 {[%clk 0:00:07]}  exd4 {[%clk 0:00:58]} 34. Ne7 {[%clk 0:00:06]}  Bxe7 {[%clk 0:00:57]} 0-1


[Site "https://www.chess.com"]

[Event "Titled Tuesday Blitz July 11 Early 2023"]
[White "Niekras, Dawid"]
[Black "Tanmay Jain"]
[WhiteFideId "1160451"]
[BlackFideId "45015481"]
[WhiteElo "2622"]
[BlackElo "2422"]
[Result "1/2-1/2"]
[Round "4"]
[TimeControl "180+2"]
[Date "2023.07.11"]
[WhiteClock "0:00:06"]
[BlackClock "0:00:17"]
[Board "85"]

1. e4 {[%clk 0:03:00]}  c5 {[%clk 0:02:58]} 2. Nf3 {[%clk 0:02:58]}  d6 {[%clk 0:02:56]} 3. Nc3 {[%clk 0:02:58]}  Nf6 {[%clk 0:02:54]} 4. e5 {[%clk 0:02:59]}  dxe5 {[%clk 0:02:50]} 5. Nxe5 {[%clk 0:03:00]}  g6 {[%clk 0:02:48]} 6. Bc4 {[%clk 0:02:59]}  e6 {[%clk 0:02:47]} 7. Bb5+ {[%clk 0:02:55]}  Nbd7 {[%clk 0:02:43]} 8. d4 {[%clk 0:02:50]}  a6 {[%clk 0:02:36]} 9. Bxd7+ {[%clk 0:02:49]}  Nxd7 {[%clk 0:02:27]} 10. Qf3 {[%clk 0:02:45]}  Qf6 {[%clk 0:02:11]} 11. Qxf6 {[%clk 0:02:26]}  Nxf6 {[%clk 0:02:12]} 12. Bg5 {[%clk 0:02:24]}  Nd7 {[%clk 0:02:03]} 13. Nxd7 {[%clk 0:02:05]}  Bxd7 {[%clk 0:02:04]} 14. Ne4 {[%clk 0:01:41]}  cxd4 {[%clk 0:01:32]} 15. O-O-O {[%clk 0:00:56]}  Bg7 {[%clk 0:01:03]} 16. Nf6+ {[%clk 0:00:10]}  Ke7 {[%clk 0:00:58]} 17. Rxd4 {[%clk 0:00:06]}  Bc6 {[%clk 0:00:25]} 18. Nh5+ {[%clk 0:00:03]}  Kf8 {[%clk 0:00:16]} 19. Nxg7 {[%clk 0:00:04]}  Kxg7 {[%clk 0:00:17]} 20. f3 {[%clk 0:00:04]}  f6 {[%clk 0:00:16]} 21. Be3 {[%clk 0:00:03]}  e5 {[%clk 0:00:16]} 22. Rd6 {[%clk 0:00:04]}  Rhd8 {[%clk 0:00:15]} 23. Rhd1 {[%clk 0:00:04]}  Rxd6 {[%clk 0:00:15]} 24. Rxd6 {[%clk 0:00:05]}  Kf7 {[%clk 0:00:16]} 25. c4 {[%clk 0:00:05]}  Re8 {[%clk 0:00:16]} 26. Kd2 {[%clk 0:00:05]}  Re6 {[%clk 0:00:16]} 27. Rd8 {[%clk 0:00:04]}  Re7 {[%clk 0:00:16]} 28. b3 {[%clk 0:00:04]}  Rd7+ {[%clk 0:00:16]} 29. Rxd7+ {[%clk 0:00:04]}  Bxd7 {[%clk 0:00:17]} 30. Kc3 {[%clk 0:00:05]}  Ke6 {[%clk 0:00:17]} 31. b4 {[%clk 0:00:05]}  Bc6 {[%clk 0:00:17]} 32. a3 {[%clk 0:00:05]}  b5 {[%clk 0:00:18]} 33. cxb5 {[%clk 0:00:03]}  axb5 {[%clk 0:00:19]} 34. Bc5 {[%clk 0:00:03]}  Kd5 {[%clk 0:00:18]} 35. Kd3 {[%clk 0:00:03]}  f5 {[%clk 0:00:17]} 36. Ke3 {[%clk 0:00:04]}  Ke6 {[%clk 0:00:18]} 37. Bf8 {[%clk 0:00:04]}  Bd5 {[%clk 0:00:18]} 38. Bc5 {[%clk 0:00:04]}  Bc4 {[%clk 0:00:18]} 39. g3 {[%clk 0:00:04]}  Kd5 {[%clk 0:00:18]} 40. f4 {[%clk 0:00:04]}  e4 {[%clk 0:00:18]} 41. Bf8 {[%clk 0:00:03]}  Bf1 {[%clk 0:00:17]} 42. Bc5 {[%clk 0:00:04]}  Kc4 {[%clk 0:00:17]} 43. Bf8 {[%clk 0:00:03]}  Kb3 {[%clk 0:00:16]} 44. Bc5 {[%clk 0:00:04]}  Kxa3 {[%clk 0:00:16]} 45. Kd2 {[%clk 0:00:05]}  Kb3 {[%clk 0:00:16]} 46. h4 {[%clk 0:00:04]}  Kc4 {[%clk 0:00:16]} 47. Ke3 {[%clk 0:00:05]}  Bd3 {[%clk 0:00:15]} 48. Kd2 {[%clk 0:00:05]}  h5 {[%clk 0:00:15]} 49. Bf8 {[%clk 0:00:04]}  Kd5 {[%clk 0:00:15]} 50. Bc5 {[%clk 0:00:04]}  Bc4 {[%clk 0:00:15]} 51. Ke3 {[%clk 0:00:05]}  Bd3 {[%clk 0:00:15]} 52. Kd2 {[%clk 0:00:05]}  Kc4 {[%clk 0:00:16]} 53. Ke3 {[%clk 0:00:06]}  Kb3 {[%clk 0:00:17]} 54. Kd2 {[%clk 0:00:06]}  Kc4 {[%clk 0:00:17]} 1/2-1/2


[Site "https://www.chess.com"]

[Event "Titled Tuesday Blitz July 11 Early 2023"]
[White "Ezat, Mohamed"]
[Black "Topalov, Aleksandar"]
[WhiteFideId "10600906"]
[BlackFideId "925659"]
[WhiteElo "2618"]
[BlackElo "2411"]
[Result "1-0"]
[Round "4"]
[TimeControl "180+2"]
[Date "2023.07.11"]
[WhiteClock "0:01:40"]
[BlackClock "0:00:24"]
[Board "86"]

1. d4 {[%clk 0:02:54]}  Nf6 {[%clk 0:02:59]} 2. c4 {[%clk 0:02:53]}  c5 {[%clk 0:02:59]} 3. d5 {[%clk 0:02:52]}  d6 {[%clk 0:02:59]} 4. Nc3 {[%clk 0:02:52]}  g6 {[%clk 0:03:00]} 5. e4 {[%clk 0:02:53]}  Bg7 {[%clk 0:02:59]} 6. Be2 {[%clk 0:02:53]}  O-O {[%clk 0:02:59]} 7. Bg5 {[%clk 0:02:53]}  e6 {[%clk 0:02:46]} 8. Qd2 {[%clk 0:02:41]}  exd5 {[%clk 0:02:43]} 9. exd5 {[%clk 0:02:42]}  Re8 {[%clk 0:02:26]} 10. Nf3 {[%clk 0:02:40]}  a6 {[%clk 0:02:20]} 11. O-O {[%clk 0:02:39]}  Nbd7 {[%clk 0:02:20]} 12. a4 {[%clk 0:02:37]}  Ne5 {[%clk 0:02:07]} 13. Nxe5 {[%clk 0:02:36]}  Rxe5 {[%clk 0:02:08]} 14. Rae1 {[%clk 0:02:27]}  Qf8 {[%clk 0:01:48]} 15. Bd3 {[%clk 0:02:25]}  Nd7 {[%clk 0:01:36]} 16. f4 {[%clk 0:02:17]}  Rxe1 {[%clk 0:01:33]} 17. Rxe1 {[%clk 0:02:16]}  Bf6 {[%clk 0:01:23]} 18. h4 {[%clk 0:02:12]}  h6 {[%clk 0:01:19]} 19. Bxf6 {[%clk 0:02:10]}  Nxf6 {[%clk 0:01:19]} 20. f5 {[%clk 0:02:11]}  Kg7 {[%clk 0:01:08]} 21. Qf4 {[%clk 0:02:04]}  Bd7 {[%clk 0:00:52]} 22. fxg6 {[%clk 0:01:45]}  fxg6 {[%clk 0:00:52]} 23. Qg3 {[%clk 0:01:45]}  Qf7 {[%clk 0:00:43]} 24. Bxg6 {[%clk 0:01:43]}  Nh5 {[%clk 0:00:24]} 25. Bxh5+ {[%clk 0:01:40]} 1-0


[Site "https://www.chess.com"]

[Event "Titled Tuesday Blitz July 11 Early 2023"]
[White "Rakitic2010"]
[Black "Mogirzan, Matei-Valeriu"]
[BlackFideId "1257455"]
[WhiteElo "2401"]
[BlackElo "2607"]
[Result "1-0"]
[Round "4"]
[TimeControl "180+2"]
[Date "2023.07.11"]
[WhiteClock "0:01:13"]
[BlackClock "0:00:00"]
[Board "87"]

1. e4 {[%clk 0:03:00]}  e5 {[%clk 0:02:59]} 2. Nf3 {[%clk 0:03:00]}  Nf6 {[%clk 0:02:59]} 3. Nxe5 {[%clk 0:02:59]}  Nc6 {[%clk 0:02:59]} 4. Nxc6 {[%clk 0:02:56]}  dxc6 {[%clk 0:03:00]} 5. Nc3 {[%clk 0:02:56]}  Bc5 {[%clk 0:03:00]} 6. Be2 {[%clk 0:02:55]}  h5 {[%clk 0:03:00]} 7. d3 {[%clk 0:02:51]}  b5 {[%clk 0:02:54]} 8. Be3 {[%clk 0:02:49]}  Bxe3 {[%clk 0:02:53]} 9. fxe3 {[%clk 0:02:50]}  b4 {[%clk 0:02:52]} 10. Na4 {[%clk 0:02:49]}  Ng4 {[%clk 0:02:35]} 11. Bxg4 {[%clk 0:02:42]}  hxg4 {[%clk 0:02:31]} 12. g3 {[%clk 0:02:40]}  f5 {[%clk 0:02:07]} 13. exf5 {[%clk 0:02:35]}  Bxf5 {[%clk 0:02:05]} 14. O-O {[%clk 0:02:28]}  Qg5 {[%clk 0:01:55]} 15. Qd2 {[%clk 0:02:13]}  O-O-O {[%clk 0:01:43]} 16. Rae1 {[%clk 0:02:12]}  a5 {[%clk 0:01:30]} 17. a3 {[%clk 0:02:05]}  Qh5 {[%clk 0:01:01]} 18. axb4 {[%clk 0:02:01]}  axb4 {[%clk 0:01:01]} 19. Re2 {[%clk 0:01:56]}  Be4 {[%clk 0:00:32]} 20. Qxb4 {[%clk 0:01:52]}  Bf3 {[%clk 0:00:24]} 21. Nc5 {[%clk 0:01:34]}  Rd5 {[%clk 0:00:16]} 22. Qb7+ {[%clk 0:01:34]}  Kd8 {[%clk 0:00:17]} 23. Qb8+ {[%clk 0:01:35]}  Ke7 {[%clk 0:00:17]} 24. Qxc7+ {[%clk 0:01:35]}  Kf6 {[%clk 0:00:08]} 25. Qxc6+ {[%clk 0:01:26]}  Ke7 {[%clk 0:00:02]} 26. Qc7+ {[%clk 0:01:22]}  Kf8 {[%clk 0:00:01]} 27. Ne6+ {[%clk 0:01:22]}  Ke8 {[%clk 0:00:02]} 28. Nxg7+ {[%clk 0:01:21]}  Kf8 {[%clk 0:00:02]} 29. Nxh5 {[%clk 0:01:18]}  Rdxh5 {[%clk 0:00:03]} 30. Ref2 {[%clk 0:01:15]}  Rh3 {[%clk 0:00:02]} 31. Rxf3+ {[%clk 0:01:13]}  gxf3 {[%clk 0:00:00]} 32. Rxf3+ {[%clk 0:01:13]} 1-0


[Site "https://www.chess.com"]

[Event "Titled Tuesday Blitz July 11 Early 2023"]
[White "Nefedov, Sergey"]
[Black "TomLiu777"]
[WhiteFideId "24113417"]
[WhiteElo "2606"]
[BlackElo "2371"]
[Result "1-0"]
[Round "4"]
[TimeControl "180+2"]
[Date "2023.07.11"]
[WhiteClock "0:00:43"]
[BlackClock "0:00:00"]
[Board "88"]

1. d4 {[%clk 0:03:00]}  Nf6 {[%clk 0:02:58]} 2. Nf3 {[%clk 0:03:00]}  c5 {[%clk 0:02:59]} 3. c3 {[%clk 0:03:00]}  e6 {[%clk 0:02:56]} 4. Bf4 {[%clk 0:03:00]}  d5 {[%clk 0:02:56]} 5. e3 {[%clk 0:03:00]}  Nc6 {[%clk 0:02:57]} 6. Nbd2 {[%clk 0:02:59]}  Qb6 {[%clk 0:02:57]} 7. Qb3 {[%clk 0:02:59]}  c4 {[%clk 0:02:55]} 8. Qc2 {[%clk 0:02:59]}  Be7 {[%clk 0:02:51]} 9. h3 {[%clk 0:02:45]}  Bd7 {[%clk 0:02:44]} 10. Be2 {[%clk 0:02:45]}  h6 {[%clk 0:02:42]} 11. O-O {[%clk 0:02:45]}  g5 {[%clk 0:02:42]} 12. Bh2 {[%clk 0:02:42]}  g4 {[%clk 0:02:39]} 13. hxg4 {[%clk 0:02:30]}  Nxg4 {[%clk 0:02:39]} 14. Bf4 {[%clk 0:02:28]}  f5 {[%clk 0:02:38]} 15. b3 {[%clk 0:02:21]}  cxb3 {[%clk 0:02:32]} 16. axb3 {[%clk 0:02:21]}  Rg8 {[%clk 0:02:25]} 17. c4 {[%clk 0:02:20]}  Nb4 {[%clk 0:02:07]} 18. Qc3 {[%clk 0:02:19]}  Rc8 {[%clk 0:01:56]} 19. c5 {[%clk 0:02:18]}  Bxc5 {[%clk 0:01:22]} 20. dxc5 {[%clk 0:02:17]}  Rxc5 {[%clk 0:01:23]} 21. Qb2 {[%clk 0:01:53]}  Bb5 {[%clk 0:00:59]} 22. Bxb5+ {[%clk 0:01:50]}  Rxb5 {[%clk 0:00:59]} 23. Nd4 {[%clk 0:01:31]}  Rc5 {[%clk 0:00:51]} 24. N2f3 {[%clk 0:01:31]}  Nd3 {[%clk 0:00:44]} 25. Qd2 {[%clk 0:01:27]}  Nxf4 {[%clk 0:00:43]} 26. exf4 {[%clk 0:01:27]}  Nf6 {[%clk 0:00:23]} 27. Qe2 {[%clk 0:01:14]}  Ne4 {[%clk 0:00:21]} 28. Ne5 {[%clk 0:01:14]}  Rc7 {[%clk 0:00:17]} 29. Qh5+ {[%clk 0:01:13]}  Kd8 {[%clk 0:00:15]} 30. Rad1 {[%clk 0:00:58]}  Rcg7 {[%clk 0:00:14]} 31. g3 {[%clk 0:00:50]}  Nxg3 {[%clk 0:00:09]} 32. fxg3 {[%clk 0:00:48]}  Rxg3+ {[%clk 0:00:10]} 33. Kh1 {[%clk 0:00:49]}  Kc8 {[%clk 0:00:06]} 34. Rc1+ {[%clk 0:00:43]}  Kb8 {[%clk 0:00:00]} 35. Nd7+ {[%clk 0:00:43]} 1-0


[Site "https://www.chess.com"]